[Event "Titled Tuesday Blitz August 15 Late 2023"]
[White "Buchenau, Frank"]
[Black "Principe, Alexander"]
[WhiteFideId "4604350"]
[BlackFideId "3804542"]
[WhiteElo "2436"]
[BlackElo "2609"]
[Result "0-1"]
[Round "3"]
[TimeControl "180+1"]
[Date "2023.08.15"]
[WhiteClock "0:00:00"]
[BlackClock "0:00:13"]
[Board "79"]

1. e4 {[%clk 0:02:56]}  e6 {[%clk 0:02:59]} 2. d4 {[%clk 0:02:55]}  d5 {[%clk 0:03:00]} 3. Nc3 {[%clk 0:02:55]}  Bb4 {[%clk 0:03:00]} 4. Ne2 {[%clk 0:02:52]}  Ne7 {[%clk 0:02:59]} 5. a3 {[%clk 0:02:51]}  Bxc3+ {[%clk 0:03:00]} 6. Nxc3 {[%clk 0:02:51]}  c5 {[%clk 0:03:00]} 7. dxc5 {[%clk 0:02:43]}  Nbc6 {[%clk 0:02:59]} 8. exd5 {[%clk 0:02:40]}  exd5 {[%clk 0:02:59]} 9. Bd3 {[%clk 0:02:33]}  O-O {[%clk 0:02:53]} 10. O-O {[%clk 0:02:31]}  a5 {[%clk 0:02:47]} 11. Qh5 {[%clk 0:02:28]}  g6 {[%clk 0:02:45]} 12. Qh4 {[%clk 0:02:25]}  Bf5 {[%clk 0:02:40]} 13. Bg5 {[%clk 0:02:20]}  Qd7 {[%clk 0:02:37]} 14. Bf6 {[%clk 0:02:17]}  h5 {[%clk 0:02:37]} 15. Qg5 {[%clk 0:02:15]}  Kh7 {[%clk 0:02:37]} 16. Rad1 {[%clk 0:02:01]}  Rfe8 {[%clk 0:02:12]} 17. Bxf5 {[%clk 0:01:53]}  Qxf5 {[%clk 0:02:04]} 18. Qxf5 {[%clk 0:01:37]}  Nxf5 {[%clk 0:02:04]} 19. Rxd5 {[%clk 0:01:32]}  Re6 {[%clk 0:02:01]} 20. Bg5 {[%clk 0:01:26]}  Ncd4 {[%clk 0:02:01]} 21. Rd7 {[%clk 0:01:19]}  Kg7 {[%clk 0:01:48]} 22. Rxb7 {[%clk 0:01:16]}  Rc8 {[%clk 0:01:46]} 23. Be3 {[%clk 0:00:56]}  Nxc2 {[%clk 0:01:45]} 24. Na4 {[%clk 0:00:39]}  Ncxe3 {[%clk 0:01:27]} 25. fxe3 {[%clk 0:00:38]}  Rxe3 {[%clk 0:01:22]} 26. Rd1 {[%clk 0:00:36]}  Re2 {[%clk 0:01:12]} 27. Rdd7 {[%clk 0:00:35]}  Rce8 {[%clk 0:01:06]} 28. Rxf7+ {[%clk 0:00:33]}  Kh6 {[%clk 0:01:06]} 29. Rh7+ {[%clk 0:00:27]}  Kg5 {[%clk 0:01:06]} 30. Nc3 {[%clk 0:00:22]}  Rd2 {[%clk 0:00:57]} 31. h3 {[%clk 0:00:18]}  Nh4 {[%clk 0:00:57]} 32. Rbd7 {[%clk 0:00:13]}  Rxg2+ {[%clk 0:00:56]} 33. Kf1 {[%clk 0:00:13]}  Rxb2 {[%clk 0:00:47]} 34. Rhe7 {[%clk 0:00:11]}  Rf8+ {[%clk 0:00:33]} 35. Rf7 {[%clk 0:00:11]}  Rxf7+ {[%clk 0:00:23]} 36. Rxf7 {[%clk 0:00:11]}  Nf5 {[%clk 0:00:23]} 37. c6 {[%clk 0:00:11]}  Rc2 {[%clk 0:00:23]} 38. Ne4+ {[%clk 0:00:09]}  Kf4 {[%clk 0:00:23]} 39. Nd6 {[%clk 0:00:09]}  Kf3 {[%clk 0:00:18]} 40. Ke1 {[%clk 0:00:05]}  Ke3 {[%clk 0:00:13]} 41. Nxf5+ {[%clk 0:00:03]}  gxf5 {[%clk 0:00:14]} 42. Kd1 {[%clk 0:00:02]}  Rc5 {[%clk 0:00:13]} 43. c7 {[%clk 0:00:02]}  Kf4 {[%clk 0:00:13]} 44. Rh7 {[%clk 0:00:00]}  Kg5 {[%clk 0:00:13]} 0-1


[Site "https://www.chess.com"]

[Event "Titled Tuesday Blitz August 15 Late 2023"]
[White "Wieczorek, Oskar"]
[Black "Miszler, Levente"]
[WhiteFideId "1133950"]
[BlackFideId "763276"]
[WhiteElo "2606"]
[BlackElo "2435"]
[Result "1-0"]
[Round "3"]
[TimeControl "180+1"]
[Date "2023.08.15"]
[WhiteClock "0:00:11"]
[BlackClock "0:01:10"]
[Board "80"]

1. e4 {[%clk 0:02:52]}  e6 {[%clk 0:03:00]} 2. b3 {[%clk 0:02:42]}  d5 {[%clk 0:02:57]} 3. Bb2 {[%clk 0:02:41]}  Nf6 {[%clk 0:02:57]} 4. e5 {[%clk 0:02:37]}  Nfd7 {[%clk 0:02:57]} 5. Qg4 {[%clk 0:02:37]}  c5 {[%clk 0:02:57]} 6. Nf3 {[%clk 0:02:32]}  Nc6 {[%clk 0:02:55]} 7. Bb5 {[%clk 0:02:28]}  Qc7 {[%clk 0:02:55]} 8. O-O {[%clk 0:02:23]}  a6 {[%clk 0:02:52]} 9. Bxc6 {[%clk 0:02:23]}  Qxc6 {[%clk 0:02:53]} 10. d3 {[%clk 0:02:23]}  b6 {[%clk 0:02:53]} 11. Re1 {[%clk 0:02:23]}  Bb7 {[%clk 0:02:52]} 12. c4 {[%clk 0:02:23]}  O-O-O {[%clk 0:02:48]} 13. Nc3 {[%clk 0:02:06]}  Kb8 {[%clk 0:02:38]} 14. Rac1 {[%clk 0:01:50]}  h5 {[%clk 0:02:22]} 15. Qf4 {[%clk 0:01:50]}  g5 {[%clk 0:02:18]} 16. Qxf7 {[%clk 0:01:40]}  dxc4 {[%clk 0:02:13]} 17. dxc4 {[%clk 0:01:27]}  g4 {[%clk 0:02:09]} 18. Nh4 {[%clk 0:01:26]}  Bh6 {[%clk 0:02:06]} 19. Rcd1 {[%clk 0:01:25]}  Rhf8 {[%clk 0:01:54]} 20. Qxh5 {[%clk 0:01:16]}  Bd2 {[%clk 0:01:37]} 21. Rxd2 {[%clk 0:01:08]}  Rh8 {[%clk 0:01:36]} 22. Qg5 {[%clk 0:01:06]}  Rxh4 {[%clk 0:01:36]} 23. Qxd8+ {[%clk 0:01:05]}  Ka7 {[%clk 0:01:35]} 24. Ne4 {[%clk 0:01:01]}  g3 {[%clk 0:01:34]} 25. Qxd7 {[%clk 0:00:39]}  Rxe4 {[%clk 0:01:32]} 26. Rf1 {[%clk 0:00:33]}  gxh2+ {[%clk 0:01:26]} 27. Kh1 {[%clk 0:00:28]}  Re1 {[%clk 0:01:24]} 28. Qxc6 {[%clk 0:00:28]}  Rxf1+ {[%clk 0:01:24]} 29. Kxh2 {[%clk 0:00:28]}  Bxc6 {[%clk 0:01:25]} 30. f3 {[%clk 0:00:26]}  b5 {[%clk 0:01:19]} 31. Rd6 {[%clk 0:00:25]}  Kb7 {[%clk 0:01:17]} 32. Kg3 {[%clk 0:00:17]}  bxc4 {[%clk 0:01:17]} 33. bxc4 {[%clk 0:00:17]}  Rb1 {[%clk 0:01:17]} 34. Ba3 {[%clk 0:00:16]}  Rc1 {[%clk 0:01:10]} 35. Bxc1 {[%clk 0:00:11]} 1-0


[Site "https://www.chess.com"]

[Event "Titled Tuesday Blitz August 15 Late 2023"]
[White "financieru"]
[Black "Altman, Joshua"]
[BlackFideId "426210"]
[WhiteElo "2433"]
[BlackElo "2602"]
[Result "0-1"]
[Round "3"]
[TimeControl "180+1"]
[Date "2023.08.15"]
[WhiteClock "0:00:08"]
[BlackClock "0:00:09"]
[Board "81"]

1. d4 {[%clk 0:03:00]}  e6 {[%clk 0:02:58]} 2. c4 {[%clk 0:03:00]}  Nf6 {[%clk 0:02:58]} 3. Nc3 {[%clk 0:03:00]}  Bb4 {[%clk 0:02:58]} 4. f3 {[%clk 0:03:00]}  d5 {[%clk 0:02:58]} 5. a3 {[%clk 0:03:00]}  Bxc3+ {[%clk 0:02:58]} 6. bxc3 {[%clk 0:03:00]}  O-O {[%clk 0:02:59]} 7. e3 {[%clk 0:03:00]}  b6 {[%clk 0:02:59]} 8. cxd5 {[%clk 0:03:00]}  exd5 {[%clk 0:03:00]} 9. Bd3 {[%clk 0:03:01]}  c5 {[%clk 0:03:00]} 10. Ne2 {[%clk 0:03:01]}  Re8 {[%clk 0:03:00]} 11. O-O {[%clk 0:03:01]}  Ba6 {[%clk 0:03:01]} 12. Bxa6 {[%clk 0:03:01]}  Nxa6 {[%clk 0:03:01]} 13. g4 {[%clk 0:03:02]}  h6 {[%clk 0:02:55]} 14. Ng3 {[%clk 0:03:00]}  Nc7 {[%clk 0:02:53]} 15. Ra2 {[%clk 0:02:58]}  Qd7 {[%clk 0:02:48]} 16. h4 {[%clk 0:02:47]}  Ne6 {[%clk 0:02:36]} 17. Rh2 {[%clk 0:02:36]}  Rac8 {[%clk 0:02:10]} 18. Kg2 {[%clk 0:02:33]}  cxd4 {[%clk 0:02:06]} 19. cxd4 {[%clk 0:02:32]}  Rc3 {[%clk 0:02:06]} 20. Rfh1 {[%clk 0:02:01]}  Qc7 {[%clk 0:01:55]} 21. g5 {[%clk 0:01:49]}  Rc2+ {[%clk 0:01:52]} 22. Bd2 {[%clk 0:01:46]}  Nh7 {[%clk 0:01:35]} 23. gxh6 {[%clk 0:01:37]}  gxh6 {[%clk 0:01:35]} 24. Nf5 {[%clk 0:01:34]}  Kh8 {[%clk 0:01:33]} 25. Nxh6 {[%clk 0:01:27]}  f6 {[%clk 0:01:23]} 26. Kh3 {[%clk 0:01:13]}  Rc8 {[%clk 0:00:45]} 27. Rg1 {[%clk 0:01:07]}  Qd7 {[%clk 0:00:41]} 28. Ng4 {[%clk 0:01:05]}  Ng7 {[%clk 0:00:31]} 29. Rhg2 {[%clk 0:00:55]}  Nh5 {[%clk 0:00:25]} 30. e4 {[%clk 0:00:41]}  dxe4 {[%clk 0:00:23]} 31. Bh6 {[%clk 0:00:41]}  Rxg2 {[%clk 0:00:18]} 32. Rxg2 {[%clk 0:00:42]}  Rc3 {[%clk 0:00:13]} 33. d5 {[%clk 0:00:17]}  Rxf3+ {[%clk 0:00:12]} 34. Kh2 {[%clk 0:00:15]}  Qd6+ {[%clk 0:00:12]} 35. Kg1 {[%clk 0:00:15]}  Ng3 {[%clk 0:00:09]} 36. Qc1 {[%clk 0:00:10]}  Rf1+ {[%clk 0:00:09]} 37. Qxf1 {[%clk 0:00:10]}  Nxf1 {[%clk 0:00:10]} 38. Kxf1 {[%clk 0:00:11]}  Qxd5 {[%clk 0:00:10]} 39. Rd2 {[%clk 0:00:11]}  Qf5+ {[%clk 0:00:09]} 40. Ke1 {[%clk 0:00:10]}  Qxg4 {[%clk 0:00:07]} 41. Rd8+ {[%clk 0:00:10]}  Nf8 {[%clk 0:00:08]} 42. Rxf8+ {[%clk 0:00:10]}  Kh7 {[%clk 0:00:08]} 43. Be3 {[%clk 0:00:10]}  Qg3+ {[%clk 0:00:08]} 44. Kd2 {[%clk 0:00:10]}  Qg2+ {[%clk 0:00:08]} 45. Kc3 {[%clk 0:00:10]}  Qf3 {[%clk 0:00:08]} 46. Kd4 {[%clk 0:00:10]}  f5 {[%clk 0:00:09]} 47. Rf7+ {[%clk 0:00:11]}  Kg6 {[%clk 0:00:08]} 48. Rxa7 {[%clk 0:00:11]}  f4 {[%clk 0:00:09]} 49. Bg1 {[%clk 0:00:10]}  Qd3+ {[%clk 0:00:09]} 50. Ke5 {[%clk 0:00:10]}  e3 {[%clk 0:00:09]} 51. Kxf4 {[%clk 0:00:08]}  e2 {[%clk 0:00:09]} 52. Re7 {[%clk 0:00:09]}  Qd6+ {[%clk 0:00:08]} 53. Kf3 {[%clk 0:00:09]}  Qxe7 {[%clk 0:00:09]} 54. Be3 {[%clk 0:00:08]}  e1=Q {[%clk 0:00:09]} 0-1


[Site "https://www.chess.com"]

[Event "Titled Tuesday Blitz August 15 Late 2023"]
[White "Ibadov, Dashgyn"]
[Black "Manukian, Artak"]
[WhiteFideId "24107514"]
[BlackFideId "13301373"]
[WhiteElo "2601"]
[BlackElo "2431"]
[Result "1/2-1/2"]
[Round "3"]
[TimeControl "180+1"]
[Date "2023.08.15"]
[WhiteClock "0:00:04"]
[BlackClock "0:00:12"]
[Board "82"]

1. e4 {[%clk 0:03:00]}  c6 {[%clk 0:02:58]} 2. d4 {[%clk 0:03:00]}  d5 {[%clk 0:02:59]} 3. exd5 {[%clk 0:03:01]}  cxd5 {[%clk 0:02:59]} 4. Bd3 {[%clk 0:03:02]}  Nc6 {[%clk 0:02:58]} 5. c3 {[%clk 0:03:03]}  e5 {[%clk 0:02:58]} 6. dxe5 {[%clk 0:03:02]}  Nxe5 {[%clk 0:02:59]} 7. Nf3 {[%clk 0:03:02]}  Nxd3+ {[%clk 0:02:57]} 8. Qxd3 {[%clk 0:03:03]}  Nf6 {[%clk 0:02:57]} 9. O-O {[%clk 0:03:03]}  Be7 {[%clk 0:02:57]} 10. Bg5 {[%clk 0:03:01]}  O-O {[%clk 0:02:56]} 11. Re1 {[%clk 0:03:01]}  Be6 {[%clk 0:02:51]} 12. Nbd2 {[%clk 0:02:59]}  Qd7 {[%clk 0:02:50]} 13. Nd4 {[%clk 0:02:57]}  Rfe8 {[%clk 0:02:48]} 14. Re2 {[%clk 0:02:49]}  Bg4 {[%clk 0:02:35]} 15. N2f3 {[%clk 0:02:35]}  h6 {[%clk 0:02:29]} 16. Bh4 {[%clk 0:02:30]}  Bh5 {[%clk 0:02:23]} 17. Rae1 {[%clk 0:02:21]}  Bg6 {[%clk 0:02:20]} 18. Qb5 {[%clk 0:02:14]}  Qxb5 {[%clk 0:02:07]} 19. Nxb5 {[%clk 0:02:15]}  Bc5 {[%clk 0:01:57]} 20. Bxf6 {[%clk 0:02:04]}  Rxe2 {[%clk 0:01:55]} 21. Rxe2 {[%clk 0:02:05]}  gxf6 {[%clk 0:01:42]} 22. Nc7 {[%clk 0:01:45]}  Rd8 {[%clk 0:01:17]} 23. Rd2 {[%clk 0:01:46]}  Be4 {[%clk 0:01:09]} 24. Nb5 {[%clk 0:01:33]}  Bxf3 {[%clk 0:01:02]} 25. gxf3 {[%clk 0:01:33]}  a6 {[%clk 0:00:59]} 26. Nd4 {[%clk 0:01:28]}  Kf8 {[%clk 0:00:51]} 27. Nf5 {[%clk 0:01:14]}  h5 {[%clk 0:00:50]} 28. Ne3 {[%clk 0:01:15]}  Bxe3 {[%clk 0:00:47]} 29. fxe3 {[%clk 0:01:15]}  Ke7 {[%clk 0:00:48]} 30. Kf2 {[%clk 0:00:58]}  f5 {[%clk 0:00:41]} 31. Kg3 {[%clk 0:00:56]}  Ke6 {[%clk 0:00:40]} 32. Kf4 {[%clk 0:00:56]}  Rg8 {[%clk 0:00:39]} 33. Rd4 {[%clk 0:00:38]}  Rg2 {[%clk 0:00:32]} 34. Rb4 {[%clk 0:00:38]}  b5 {[%clk 0:00:31]} 35. a4 {[%clk 0:00:38]}  bxa4 {[%clk 0:00:21]} 36. Rb6+ {[%clk 0:00:39]}  Ke7 {[%clk 0:00:20]} 37. Kxf5 {[%clk 0:00:40]}  Rxh2 {[%clk 0:00:19]} 38. Rxa6 {[%clk 0:00:28]}  Rxb2 {[%clk 0:00:19]} 39. Rxa4 {[%clk 0:00:28]}  Rb3 {[%clk 0:00:19]} 40. Ke5 {[%clk 0:00:18]}  Rxc3 {[%clk 0:00:19]} 41. Ra7+ {[%clk 0:00:18]}  Ke8 {[%clk 0:00:17]} 42. Kd4 {[%clk 0:00:12]}  Rb3 {[%clk 0:00:16]} 43. Ra5 {[%clk 0:00:10]}  h4 {[%clk 0:00:09]} 44. Rxd5 {[%clk 0:00:10]}  Ke7 {[%clk 0:00:09]} 45. Rh5 {[%clk 0:00:10]}  Kf6 {[%clk 0:00:09]} 46. f4 {[%clk 0:00:09]}  Rb4+ {[%clk 0:00:09]} 47. Kd3 {[%clk 0:00:08]}  Rb3+ {[%clk 0:00:09]} 48. Ke4 {[%clk 0:00:08]}  Kg6 {[%clk 0:00:05]} 49. Rxh4 {[%clk 0:00:08]}  f5+ {[%clk 0:00:05]} 50. Kd4 {[%clk 0:00:03]}  Rb4+ {[%clk 0:00:05]} 51. Kd3 {[%clk 0:00:03]}  Rb3+ {[%clk 0:00:05]} 52. Ke2 {[%clk 0:00:03]}  Rb2+ {[%clk 0:00:06]} 53. Kf3 {[%clk 0:00:03]}  Rb3 {[%clk 0:00:06]} 54. Rh3 {[%clk 0:00:02]}  Kf6 {[%clk 0:00:06]} 55. Rh6+ {[%clk 0:00:02]}  Kf7 {[%clk 0:00:06]} 56. Rc6 {[%clk 0:00:03]}  Ra3 {[%clk 0:00:05]} 57. Rb6 {[%clk 0:00:04]}  Ke7 {[%clk 0:00:06]} 58. Rb5 {[%clk 0:00:03]}  Ke6 {[%clk 0:00:05]} 59. Re5+ {[%clk 0:00:03]}  Kf6 {[%clk 0:00:06]} 60. Rd5 {[%clk 0:00:03]}  Ke6 {[%clk 0:00:06]} 61. Rd4 {[%clk 0:00:04]}  Kf6 {[%clk 0:00:06]} 62. Ke2 {[%clk 0:00:04]}  Ra2+ {[%clk 0:00:06]} 63. Rd2 {[%clk 0:00:04]}  Ra3 {[%clk 0:00:06]} 64. Rc2 {[%clk 0:00:04]}  Rb3 {[%clk 0:00:06]} 65. Kd2 {[%clk 0:00:04]}  Ra3 {[%clk 0:00:06]} 66. Rc3 {[%clk 0:00:05]}  Ra2+ {[%clk 0:00:07]} 67. Kd3 {[%clk 0:00:05]}  Ra4 {[%clk 0:00:07]} 68. Rc4 {[%clk 0:00:05]}  Ra6 {[%clk 0:00:07]} 69. Kd4 {[%clk 0:00:04]}  Rd6+ {[%clk 0:00:07]} 70. Kc3 {[%clk 0:00:02]}  Re6 {[%clk 0:00:08]} 71. Kd3 {[%clk 0:00:02]}  Rd6+ {[%clk 0:00:09]} 72. Rd4 {[%clk 0:00:03]}  Re6 {[%clk 0:00:10]} 73. Rd5 {[%clk 0:00:03]}  Ra6 {[%clk 0:00:09]} 74. Kd4 {[%clk 0:00:02]}  Ra4+ {[%clk 0:00:10]} 75. Kd3 {[%clk 0:00:02]}  Ra3+ {[%clk 0:00:10]} 76. Kd4 {[%clk 0:00:03]}  Ra4+ {[%clk 0:00:10]} 77. Kc3 {[%clk 0:00:02]}  Ra3+ {[%clk 0:00:11]} 78. Kd2 {[%clk 0:00:02]}  Ra2+ {[%clk 0:00:11]} 79. Kd3 {[%clk 0:00:02]}  Ra3+ {[%clk 0:00:12]} 80. Ke2 {[%clk 0:00:03]}  Ra2+ {[%clk 0:00:12]} 81. Kf3 {[%clk 0:00:03]}  Ra3 {[%clk 0:00:13]} 82. Re5 {[%clk 0:00:04]}  Kg6 {[%clk 0:00:12]} 83. Ke2 {[%clk 0:00:04]}  Kf6 {[%clk 0:00:12]} 84. Kd2 {[%clk 0:00:04]}  Ra2+ {[%clk 0:00:13]} 85. Kc3 {[%clk 0:00:05]}  Ra3+ {[%clk 0:00:14]} 86. Kb4 {[%clk 0:00:05]}  Rd3 {[%clk 0:00:13]} 87. Kc4 {[%clk 0:00:04]}  Rd1 {[%clk 0:00:14]} 88. Rd5 {[%clk 0:00:04]}  Re1 {[%clk 0:00:14]} 89. Rd3 {[%clk 0:00:04]}  Rc1+ {[%clk 0:00:14]} 90. Kd5 {[%clk 0:00:04]}  Rc8 {[%clk 0:00:15]} 91. Rb3 {[%clk 0:00:04]}  Rd8+ {[%clk 0:00:15]} 92. Kc6 {[%clk 0:00:04]}  Rc8+ {[%clk 0:00:15]} 93. Kd7 {[%clk 0:00:04]}  Rc2 {[%clk 0:00:14]} 94. Rb6+ {[%clk 0:00:05]}  Kf7 {[%clk 0:00:14]} 95. Kd6 {[%clk 0:00:03]}  Kf6 {[%clk 0:00:12]} 96. Kd5+ {[%clk 0:00:03]}  Kf7 {[%clk 0:00:12]} 97. Ke5 {[%clk 0:00:04]}  Rc5+ {[%clk 0:00:12]} 98. Kd4 {[%clk 0:00:04]}  Rc1 {[%clk 0:00:12]} 99. Rd6 {[%clk 0:00:04]}  Ke7 {[%clk 0:00:12]} 1/2-1/2


[Site "https://www.chess.com"]

[Event "Titled Tuesday Blitz August 15 Late 2023"]
[White "Isajevsky, Anton"]
[Black "Vafin, Ayrat"]
[WhiteFideId "4142500"]
[BlackFideId "4146530"]
[WhiteElo "2597"]
[BlackElo "2430"]
[Result "1-0"]
[Round "3"]
[TimeControl "180+1"]
[Date "2023.08.15"]
[WhiteClock "0:00:14"]
[BlackClock "0:00:04"]
[Board "83"]

1. c4 {[%clk 0:03:00]}  e6 {[%clk 0:02:58]} 2. Nf3 {[%clk 0:03:00]}  d5 {[%clk 0:02:59]} 3. e3 {[%clk 0:03:01]}  Nf6 {[%clk 0:02:59]} 4. Nc3 {[%clk 0:03:01]}  Bd6 {[%clk 0:02:59]} 5. b3 {[%clk 0:03:00]}  O-O {[%clk 0:02:59]} 6. Bb2 {[%clk 0:03:00]}  b6 {[%clk 0:02:59]} 7. Rc1 {[%clk 0:02:57]}  a6 {[%clk 0:02:59]} 8. cxd5 {[%clk 0:02:52]}  exd5 {[%clk 0:02:59]} 9. g3 {[%clk 0:02:51]}  Bb7 {[%clk 0:02:53]} 10. Ne2 {[%clk 0:02:50]}  Nbd7 {[%clk 0:02:51]} 11. Bg2 {[%clk 0:02:50]}  Qe7 {[%clk 0:02:47]} 12. O-O {[%clk 0:02:49]}  Rac8 {[%clk 0:02:40]} 13. Rc2 {[%clk 0:02:28]}  Ne5 {[%clk 0:02:29]} 14. Nxe5 {[%clk 0:01:38]}  Bxe5 {[%clk 0:02:30]} 15. Bxe5 {[%clk 0:01:38]}  Qxe5 {[%clk 0:02:31]} 16. d4 {[%clk 0:01:38]}  Qd6 {[%clk 0:02:16]} 17. Qc1 {[%clk 0:01:37]}  c5 {[%clk 0:02:09]} 18. Qa3 {[%clk 0:01:34]}  Nd7 {[%clk 0:01:49]} 19. Rd1 {[%clk 0:01:26]}  Qg6 {[%clk 0:01:36]} 20. Rcd2 {[%clk 0:01:24]}  c4 {[%clk 0:01:35]} 21. bxc4 {[%clk 0:01:24]}  Rxc4 {[%clk 0:01:35]} 22. Nf4 {[%clk 0:01:22]}  Qg5 {[%clk 0:00:42]} 23. Qd6 {[%clk 0:01:16]}  Nf6 {[%clk 0:00:18]} 24. Qxb6 {[%clk 0:01:10]}  Bc6 {[%clk 0:00:15]} 25. Qxa6 {[%clk 0:01:03]}  h5 {[%clk 0:00:15]} 26. h4 {[%clk 0:00:54]}  Qf5 {[%clk 0:00:15]} 27. Bf1 {[%clk 0:00:33]}  Rc2 {[%clk 0:00:15]} 28. Qd3 {[%clk 0:00:27]}  Qxd3 {[%clk 0:00:07]} 29. Bxd3 {[%clk 0:00:28]}  Rc3 {[%clk 0:00:06]} 30. Rc2 {[%clk 0:00:24]}  Rxc2 {[%clk 0:00:07]} 31. Bxc2 {[%clk 0:00:25]}  Ra8 {[%clk 0:00:07]} 32. Bb3 {[%clk 0:00:25]}  Ba4 {[%clk 0:00:04]} 33. Rc1 {[%clk 0:00:23]}  Bxb3 {[%clk 0:00:04]} 34. axb3 {[%clk 0:00:24]}  Rb8 {[%clk 0:00:04]} 35. Rb1 {[%clk 0:00:22]}  g6 {[%clk 0:00:05]} 36. b4 {[%clk 0:00:17]}  Rb5 {[%clk 0:00:05]} 37. f3 {[%clk 0:00:15]}  Kf8 {[%clk 0:00:06]} 38. Kf2 {[%clk 0:00:16]}  Ke7 {[%clk 0:00:07]} 39. Ke2 {[%clk 0:00:16]}  Kd6 {[%clk 0:00:07]} 40. Kd3 {[%clk 0:00:17]}  Nd7 {[%clk 0:00:08]} 41. Ne2 {[%clk 0:00:14]}  Nb6 {[%clk 0:00:04]} 42. Nc3 {[%clk 0:00:14]} 1-0


[Site "https://www.chess.com"]

[Event "Titled Tuesday Blitz August 15 Late 2023"]
[White "Farmani Anosheh, Armin"]
[Black "Yang, Cayden"]
[WhiteFideId "24613240"]
[BlackFideId "30967260"]
[WhiteElo "2430"]
[BlackElo "2595"]
[Result "1-0"]
[Round "3"]
[TimeControl "180+1"]
[Date "2023.08.15"]
[WhiteClock "0:00:18"]
[BlackClock "0:00:09"]
[Board "84"]

1. e4 {[%clk 0:03:00]}  c5 {[%clk 0:02:58]} 2. Nf3 {[%clk 0:03:01]}  d6 {[%clk 0:02:57]} 3. Bb5+ {[%clk 0:03:01]}  Nd7 {[%clk 0:02:57]} 4. d4 {[%clk 0:03:01]}  cxd4 {[%clk 0:02:56]} 5. Qxd4 {[%clk 0:03:02]}  a6 {[%clk 0:02:54]} 6. Bxd7+ {[%clk 0:03:01]}  Bxd7 {[%clk 0:02:55]} 7. c4 {[%clk 0:02:58]}  Nf6 {[%clk 0:02:41]} 8. Nc3 {[%clk 0:02:57]}  e5 {[%clk 0:02:36]} 9. Qd3 {[%clk 0:02:55]}  h6 {[%clk 0:02:36]} 10. a4 {[%clk 0:02:42]}  Be7 {[%clk 0:02:35]} 11. O-O {[%clk 0:02:40]}  O-O {[%clk 0:02:34]} 12. h3 {[%clk 0:02:27]}  Rc8 {[%clk 0:02:20]} 13. Bd2 {[%clk 0:02:16]}  Qb6 {[%clk 0:02:12]} 14. a5 {[%clk 0:01:55]}  Qc7 {[%clk 0:01:49]} 15. b3 {[%clk 0:01:53]}  Rfd8 {[%clk 0:01:47]} 16. Be3 {[%clk 0:01:30]}  Qb8 {[%clk 0:01:30]} 17. Rfd1 {[%clk 0:01:01]}  Bc6 {[%clk 0:01:26]} 18. Nh4 {[%clk 0:00:52]}  Bf8 {[%clk 0:01:11]} 19. Nf5 {[%clk 0:00:51]}  Kh8 {[%clk 0:01:11]} 20. Bb6 {[%clk 0:00:45]}  Rd7 {[%clk 0:01:08]} 21. Ne3 {[%clk 0:00:46]}  Be7 {[%clk 0:00:57]} 22. Ncd5 {[%clk 0:00:40]}  Nxd5 {[%clk 0:00:53]} 23. exd5 {[%clk 0:00:38]}  g6 {[%clk 0:00:41]} 24. dxc6 {[%clk 0:00:36]}  bxc6 {[%clk 0:00:42]} 25. b4 {[%clk 0:00:32]}  Qb7 {[%clk 0:00:37]} 26. b5 {[%clk 0:00:32]}  Bd8 {[%clk 0:00:21]} 27. Bxd8 {[%clk 0:00:28]}  Rcxd8 {[%clk 0:00:22]} 28. bxc6 {[%clk 0:00:24]}  Qxc6 {[%clk 0:00:21]} 29. Qd5 {[%clk 0:00:25]}  Qc8 {[%clk 0:00:22]} 30. Rab1 {[%clk 0:00:25]}  Rc7 {[%clk 0:00:19]} 31. Rb6 {[%clk 0:00:25]}  Rc5 {[%clk 0:00:19]} 32. Qe4 {[%clk 0:00:25]}  Rxa5 {[%clk 0:00:19]} 33. Rbxd6 {[%clk 0:00:22]}  Rf8 {[%clk 0:00:17]} 34. R1d5 {[%clk 0:00:22]}  Rxd5 {[%clk 0:00:15]} 35. Rxd5 {[%clk 0:00:20]}  a5 {[%clk 0:00:13]} 36. Qxe5+ {[%clk 0:00:17]}  Kg8 {[%clk 0:00:14]} 37. Rxa5 {[%clk 0:00:16]}  Qd8 {[%clk 0:00:14]} 38. Qd5 {[%clk 0:00:16]}  Qb6 {[%clk 0:00:14]} 39. Ra8 {[%clk 0:00:15]}  Qb1+ {[%clk 0:00:13]} 40. Nf1 {[%clk 0:00:15]}  Rxa8 {[%clk 0:00:11]} 41. Qxa8+ {[%clk 0:00:16]}  Kg7 {[%clk 0:00:11]} 42. Qd5 {[%clk 0:00:16]}  Qc2 {[%clk 0:00:11]} 43. c5 {[%clk 0:00:17]}  h5 {[%clk 0:00:11]} 44. c6 {[%clk 0:00:17]}  h4 {[%clk 0:00:11]} 45. Qd7 {[%clk 0:00:17]}  g5 {[%clk 0:00:10]} 46. c7 {[%clk 0:00:18]}  Kh6 {[%clk 0:00:11]} 47. c8=Q {[%clk 0:00:18]}  Qh7 {[%clk 0:00:11]} 48. Qd6+ {[%clk 0:00:18]}  Kg7 {[%clk 0:00:10]} 49. Qc3+ {[%clk 0:00:17]}  Kg8 {[%clk 0:00:09]} 50. Qd8# {[%clk 0:00:18]} 1-0


[Site "https://www.chess.com"]

[Event "Titled Tuesday Blitz August 15 Late 2023"]
[White "Ribeiro, Matheus Mendes Domingues"]
[Black "Gamayev, Oleg"]
[WhiteFideId "324226923"]
[BlackFideId "2802813"]
[WhiteElo "2429"]
[BlackElo "2594"]
[Result "1-0"]
[Round "3"]
[TimeControl "180+1"]
[Date "2023.08.15"]
[WhiteClock "0:02:17"]
[BlackClock "0:02:28"]
[Board "85"]

1. c4 {[%clk 0:03:00]}  d6 {[%clk 0:02:56]} 2. Nc3 {[%clk 0:03:00]}  e5 {[%clk 0:02:56]} 3. Nf3 {[%clk 0:03:00]}  Nf6 {[%clk 0:02:56]} 4. g3 {[%clk 0:03:01]}  Be7 {[%clk 0:02:56]} 5. Bg2 {[%clk 0:03:02]}  c6 {[%clk 0:02:57]} 6. O-O {[%clk 0:03:02]}  a5 {[%clk 0:02:57]} 7. d4 {[%clk 0:03:03]}  exd4 {[%clk 0:02:57]} 8. Nxd4 {[%clk 0:03:04]}  O-O {[%clk 0:02:58]} 9. b3 {[%clk 0:03:03]}  Re8 {[%clk 0:02:58]} 10. Bb2 {[%clk 0:03:04]}  Bf8 {[%clk 0:02:59]} 11. Qc2 {[%clk 0:03:02]}  Nbd7 {[%clk 0:03:00]} 12. Rfd1 {[%clk 0:03:00]}  Qc7 {[%clk 0:03:01]} 13. Rac1 {[%clk 0:02:58]}  Nb6 {[%clk 0:03:01]} 14. Nf5 {[%clk 0:02:51]}  Bxf5 {[%clk 0:02:59]} 15. Qxf5 {[%clk 0:02:51]}  Re6 {[%clk 0:02:57]} 16. Nd5 {[%clk 0:02:47]}  Nbxd5 {[%clk 0:02:44]} 17. cxd5 {[%clk 0:02:46]}  Rxe2 {[%clk 0:02:43]} 18. Bxf6 {[%clk 0:02:31]}  gxf6 {[%clk 0:02:28]} 19. Qg4+ {[%clk 0:02:17]} 1-0


[Site "https://www.chess.com"]